[Event "Turkish Cup 2022"]
[Site "Sakarya"]
[Date "2022.03.30"]
[Round "8.9"]
[White "Kavri, Yusuf Eren"]
[Black "Eren, Ataberk"]
[Result "0-1"]
[ECO "E13"]
[WhiteElo "1886"]
[BlackElo "2306"]
[Annotator "ChessBase"]
[PlyCount "190"]
[EventDate "2022.03.25"]
[EventType "swiss"]
[EventCountry "TUR"]
[SourceTitle "playchess.com"]
[Source "ChessBase"]
[SourceQuality "1"]
[TimeControl "5400+30"]

1. d4 {[%emt 0:01:00]} Nf6 {[%emt 0:04:00]} 2. c4 {[%emt 0:00:30]} e6 {[%emt 0:00:00]} 3. Nc3 {[%emt 0:00:00]} Bb4 {[%emt 0:00:00]} 4. Nf3 {[%emt 0:00:00]} b6 {[%emt 0:00:30]} 5. Bg5 {[%emt 0:05:30]} h6 {[%emt 0:00:30]} 6. Bh4 {[%emt 0:00:30]} Bb7 {[%emt 0:00:30]} 7. e3 {[%emt 0:00:30]} g5 {[%emt 0:00:30]} 8. Bg3 {[%emt 0:00:30]} Ne4 {[%emt 0:00:30]} 9. Qc2 {[%emt 0:00:30]} Bxc3+ {[%emt 0:00:30]} 10. bxc3 {[%emt 0:00:30]} d6 {[%emt 0:00:00]} 11. Nd2 {[%emt 0:00:00]} f5 {[%emt 0:00:00]} 12. Nxe4 {[%emt 0:05:00]} Bxe4 {[%emt 0:00:00]} 13. Qa4+ {[%emt 0:00:30]} Bc6 {[%emt 0:00:00]} 14. Qc2 {[%emt 0:00:30]} Qf6 {[%emt 0:00:00]} 15. f3 {[%emt 0:10:30]} Nd7 {[%emt 0:00:00]} 16. O-O-O {[%emt 0:00:30]} O-O-O {[%emt 0:00:30]} 17. Bd3 {[%emt 0:01:30]} Rdf8 {[%emt 0:00:30]} 18. e4 {[%emt 0:00:30]} f4 {[%emt 0:00:30]} 19. Bf2 {[%emt 0:00:30]} Qe7 {[%emt 0:01:30]} 20. Qe2 {[%emt 0:08:30]} Bb7 {[%emt 0:05:30]} 21. Kb1 {[%emt 0:04:30]} e5 {[%emt 0:00:30]} 22. h4 {[%emt 0:02:30]} Rfg8 {[%emt 0:01:30]} 23. hxg5 {[%emt 0:04:30]} hxg5 {[%emt 0:00:30]} 24. g4 {[%emt 0:01:30]} c5 {[%emt 0:15:30]} 25. d5 {[%emt 0:02:30]} Rh7 {[%emt 0:07:30]} 26. Rdg1 {[%emt 0:02:30]} Rgh8 {[%emt 0:00:30]} 27. Qf1 {[%emt 0:00:00]} Rh2 {[%emt 0:00:30]} 28. Rxh2 {[%emt 0:02:00]} Rxh2 {[%emt 0:00:30]} 29. Rh1 {[%emt 0:00:30]} Qh7 {[%emt 0:00:30]} 30. Rxh2 {[%emt 0:00:30]} Qxh2 {[%emt 0:00:00]} 31. Qg1 {[%emt 0:00:00]} Qh3 {[%emt 0:00:00]} 32. Be2 {[%emt 0:00:00]} Nf6 {[%emt 0:00:30]} 33. Qf1 {[%emt 0:01:30]} Qh7 {[%emt 0:00:00]} 34. Bd3 {[%emt 0:01:30]} Qh2 {[%emt 0:01:00]} 35. Be2 {[%emt 0:04:30]} Ba6 {[%emt 0:00:00]} 36. Bg1 {[%emt 0:02:30]} Qh7 {[%emt 0:01:00]} 37. Bd3 {[%emt 0:00:30]} Qh1 {[%emt 0:01:30]} 38. Kb2 {[%emt 0:02:30]} Kd8 {[%emt 0:00:30]} 39. Qf2 {[%emt 0:04:30]} Qh7 {[%emt 0:00:30]} 40. Qh2 {[%emt 0:01:30]} Qg7 {[%emt 0:00:30]} 41. Qg2 {[%emt 0:00:30]} Qh7 {[%emt 0:01:30]} 42. Qh2 {[%emt 0:00:30]} Qxh2+ {[%emt 0:01:30]} 43. Bxh2 {[%emt 0:00:30]} Ng8 {[%emt 0:00:30]} 44. Bg1 {[%emt 0:00:30]} Nh6 {[%emt 0:00:00]} 45. Be2 {[%emt 0:01:30]} Nf7 {[%emt 0:00:00]} 46. Kc2 {[%emt 0:05:30]} Kc7 {[%emt 0:01:30]} 47. Kd3 {[%emt 0:00:30]} Nd8 {[%emt 0:00:00]} 48. Bd1 {[%emt 0:00:30]} Nb7 {[%emt 0:00:00]} 49. Bb3 {[%emt 0:05:30]} Na5 {[%emt 0:00:00]} 50. Bf2 {[%emt 0:00:30]} Bc8 {[%emt 0:00:00]} 51. Ba4 {[%emt 0:01:30]} Ba6 {[%emt 0:01:30]} 52. Bb3 {[%emt 0:00:30]} Bb7 {[%emt 0:00:30]} 53. Ba4 {[%emt 0:01:30]} Bc8 {[%emt 0:00:30]} 54. Bg1 {[%emt 0:00:30]} Kd8 {[%emt 0:00:30]} 55. Bf2 {[%emt 0:00:30]} Ke7 {[%emt 0:00:30]} 56. Bg1 {[%emt 0:00:30]} Ba6 {[%emt 0:01:30]} 57. Bb3 {[%emt 0:00:30]} Nb7 {[%emt 0:00:00]} 58. Ba4 {[%emt 0:00:30]} Na5 {[%emt 0:00:00]} 59. Bb3 {[%emt 0:00:30]} Bc8 {[%emt 0:00:30]} 60. Ba4 {[%emt 0:00:54]} a6 {[%emt 0:00:00]} 61. Bf2 {[%emt 0:01:51]} Kd8 {[%emt 0:00:00]} 62. Bg1 {[%emt 0:00:21]} Kc7 {[%emt 0:00:30]} 63. Bf2 {[%emt 0:00:18]} Nb7 {[%emt 0:01:30]} 64. Bg1 {[%emt 0:02:36]} Na5 {[%emt 0:01:30]} 65. Bf2 {[%emt 0:00:04]} Nb7 {[%emt 0:08:30]} 66. Bg1 {[%emt 0:02:40]} Nd8 {[%emt 0:00:30]} 67. Bf2 {[%emt 0:00:57]} Nf7 {[%emt 0:00:00]} 68. Bg1 {[%emt 0:00:53]} Nh6 {[%emt 0:00:00]} 69. Bf2 {[%emt 0:07:22]} Nxg4 {[%emt 0:00:30]} 70. fxg4 {[%emt 0:00:30]} Bxg4 {[%emt 0:00:30]} 71. Bg1 {[%emt 0:03:09]} Bf3 {[%emt 0:00:30]} 72. Bf2 {[%emt 0:00:36]} Kd8 {[%emt 0:00:00]} 73. Be1 {[%emt 0:00:53]} Ke7 {[%emt 0:00:00]} 74. Bf2 {[%emt 0:00:00]} Kf6 {[%emt 0:01:30]} 75. Be8 {[%emt 0:00:16]} Kg7 {[%emt 0:00:00]} 76. Be1 {[%emt 0:01:30]} Kh6 {[%emt 0:00:00]} 77. Bf2 {[%emt 0:00:17]} Bg2 {[%emt 0:03:30]} 78. a3 {[%emt 0:03:18]} Bf1+ {[%emt 0:02:30]} 79. Kd2 {[%emt 0:00:30]} Bxc4 {[%emt 0:00:00]} 80. Bf7 {[%emt 0:00:37]} Bf1 {[%emt 0:00:00]} 81. Be8 {[%emt 0:00:54]} Bg2 {[%emt 0:00:30]} 82. Kd3 {[%emt 0:00:00]} Bf3 {[%emt 0:00:30]} 83. a4 {[%emt 0:00:44]} g4 {[%emt 0:01:30]} 84. Bh4 {[%emt 0:00:34]} g3 {[%emt 0:00:30]} 85. Bf7 {[%emt 0:00:38]} b5 {[%emt 0:01:30]} 86. axb5 {[%emt 0:00:53]} axb5 {[%emt 0:00:00]} 87. Be8 {[%emt 0:00:06]} c4+ {[%emt 0:01:00]} 88. Kd2 {[%emt 0:00:30]} Bxe4 {[%emt 0:00:00]} 89. Ke1 {[%emt 0:00:32]} Bxd5 {[%emt 0:00:00]} 90. Be7 {[%emt 0:00:21]} f3 {[%emt 0:00:30]} 91. Bh4 {[%emt 0:00:32]} f2+ {[%emt 0:01:30]} 92. Kf1 {[%emt 0:00:30]} b4 {[%emt 0:02:30]} 93. Bxg3 {[%emt 0:00:41]} b3 {[%emt 0:00:30]} 94. Ba4 {[%emt 0:00:54]} Be4 {[%emt 0:00:00]} 95. Kxf2 {[%emt 0:00:20]} b2 {[%emt 0:00:00]} 0-1

[Event "Turkish Cup 2022"]
[Site "Sakarya"]
[Date "2022.03.30"]
[Round "8.18"]
[White "Temizer, Umut"]
[Black "Sahin, Fehim"]
[Result "1/2-1/2"]
[ECO "B13"]
[WhiteElo "1972"]
[BlackElo "1648"]
[Annotator "RC"]
[PlyCount "98"]
[EventDate "2022.03.25"]
[EventType "swiss"]
[EventCountry "TUR"]
[SourceTitle "playchess.com"]
[Source "ChessBase"]
[SourceQuality "1"]
[TimeControl "5400+30"]

1. e4 c6 2. d4 d5 3. exd5 cxd5 4. Bd3 Nf6 5. h3 Nc6 6. c3 e6 7. Bf4 Bd6 8. Bxd6 Qxd6 9. Nf3 Ne4 10. Bxe4 dxe4 11. Ng5 Qf4 12. Qd2 Qxd2+ 13. Nxd2 f5 14. h4 O-O 15. Ke2 Rd8 16. f4 h6 17. Nh3 b6 18. Kf2 Ba6 19. Nb1 Bd3 20. Kg3 b5 21. Nd2 b4 22. Nf2 Ba6 23. Nb3 bxc3 24. bxc3 Bc4 25. Nc5 Rab8 26. Nd1 Na5 27. Ne3 Bd5 28. Rhb1 Nc4 29. Nxc4 Bxc4 30. a4 Kf7 31. Nd7 Rxb1 32. Ne5+ Ke7 33. Rxb1 Bd5 34. Kf2 Rc8 35. c4 Bxc4 36. Rb7+ Kf8 37. Rxa7 Bd5 38. Nd7+ Kg8 39. Nc5 Rb8 40. a5 Rb4 41. Ke3 Rc4 42. Rc7 Rc3+ 43. Kd2 Rg3 44. a6 Rxg2+ 45. Kc3 Rg3+ 46. Kd2 Rg2+ 47. Kc3 Rg3+ 48. Kd2 Ra3 49. a7 Ra1 1/2-1/2

[Event "Turkish Cup 2022"]
[Site "Sakarya"]
[Date "2022.03.30"]
[Round "8.19"]
[White "Dolek, Gokalp Deniz"]
[Black "Maruflu, Enes Yusuf"]
[Result "0-1"]
[ECO "B42"]
[WhiteElo "1520"]
[BlackElo "1945"]
[Annotator "RC"]
[PlyCount "58"]
[EventDate "2022.03.25"]
[EventType "swiss"]
[EventCountry "TUR"]
[SourceTitle "playchess.com"]
[Source "ChessBase"]
[SourceQuality "1"]
[TimeControl "5400+30"]

1. e4 c5 2. Nf3 e6 3. d4 cxd4 4. Nxd4 a6 5. Bd3 Nf6 6. O-O Qc7 7. c4 Bd6 8. h3 Nc6 9. Nc2 Ne5 10. Nc3 b6 11. f4 Nxd3 12. Qxd3 Bb7 13. Be3 Bc5 14. Rae1 Rc8 15. e5 Ng8 16. Ne4 Be7 17. b3 b5 18. c5 Bxe4 19. Qxe4 f5 20. Qd3 Bxc5 21. Nd4 Bxd4 22. Qxd4 Ne7 23. Rc1 Qb7 24. Qd6 Kf7 25. Rfd1 Rxc1 26. Rxc1 Nd5 27. Bd2 Rc8 28. Rxc8 Qxc8 29. Bb4 Qc1+ 0-1

[Event "Turkish Cup 2022"]
[Site "Sakarya"]
[Date "2022.03.30"]
[Round "8.21"]
[White "Kurtyilmaz, Kuzey"]
[Black "Akin, Kadir"]
[Result "0-1"]
[ECO "B01"]
[WhiteElo "1394"]
[BlackElo "1964"]
[Annotator "ChessBase"]
[PlyCount "98"]
[EventDate "2022.03.25"]
[EventType "swiss"]
[EventCountry "TUR"]
[SourceTitle "playchess.com"]
[Source "ChessBase"]
[SourceQuality "1"]
[TimeControl "5400+30"]

1. e4 {[%emt 0:01:00]} d5 {[%emt 0:11:00]} 2. exd5 {[%emt 0:00:30]} Qxd5 {[%emt 0:00:00]} 3. Nc3 {[%emt 0:00:30]} Qd6 {[%emt 0:00:00]} 4. d4 {[%emt 0:00:00]} Nf6 {[%emt 0:00:30]} 5. Nf3 {[%emt 0:00:00]} Bg4 {[%emt 0:00:30]} 6. h3 {[%emt 0:00:30]} Bxf3 {[%emt 0:00:30]} 7. Qxf3 {[%emt 0:00:30]} c6 {[%emt 0:00:00]} 8. Be3 {[%emt 0:01:30]} Nbd7 {[%emt 0:00:00]} 9. O-O-O {[%emt 0:00:30]} e6 {[%emt 0:01:30]} 10. g4 {[%emt 0:03:30]} h6 {[%emt 0:02:30]} 11. Bf4 {[%emt 0:04:30]} Qb4 {[%emt 0:04:30]} 12. a3 {[%emt 0:01:30]} Qa5 {[%emt 0:00:30]} 13. Ne4 {[%emt 0:03:30]} Nxe4 {[%emt 0:11:30]} 14. Qxe4 {[%emt 0:00:30]} Be7 {[%emt 0:02:30]} 15. Bd2 {[%emt 0:09:30]} Qb6 {[%emt 0:04:30]} 16. Bc4 {[%emt 0:01:30]} O-O-O {[%emt 0:02:30]} 17. c3 {[%emt 0:04:30]} Nf6 {[%emt 0:05:30]} 18. Qe2 {[%emt 0:00:30]} Bd6 {[%emt 0:01:30]} 19. Rhe1 {[%emt 0:03:30]} Qc7 {[%emt 0:00:00]} 20. Qf3 {[%emt 0:04:30]} Rd7 {[%emt 0:14:00]} 21. h4 {[%emt 0:00:30]} Nd5 {[%emt 0:03:30]} 22. Ba2 {[%emt 0:05:30]} Bf4 {[%emt 0:07:30]} 23. Bxd5 {[%emt 0:02:30]} Bxd2+ {[%emt 0:00:30]} 24. Rxd2 {[%emt 0:00:00]} cxd5 {[%emt 0:00:30]} 25. Re5 {[%emt 0:00:00]} Qc4 {[%emt 0:00:30]} 26. Qe2 {[%emt 0:00:30]} Qa2 {[%emt 0:01:30]} 27. Qd3 {[%emt 0:02:30]} Kb8 {[%emt 0:07:36]} 28. Qb1 {[%emt 0:01:30]} Qb3 {[%emt 0:00:23]} 29. Qc2 {[%emt 0:00:30]} Qb5 {[%emt 0:00:30]} 30. Qd3 {[%emt 0:00:30]} Qa4 {[%emt 0:00:02]} 31. Qc2 {[%emt 0:00:00]} Qa5 {[%emt 0:00:31]} 32. f4 {[%emt 0:01:00]} Rc8 {[%emt 0:00:29]} 33. Qb3 {[%emt 0:00:30]} Qa6 {[%emt 0:00:17]} 34. Rde2 {[%emt 0:00:30]} Qd3 {[%emt 0:00:27]} 35. Qc2 {[%emt 0:01:30]} Qg3 {[%emt 0:00:16]} 36. f5 {[%emt 0:00:30]} Qxg4 {[%emt 0:00:39]} 37. fxe6 {[%emt 0:00:30]} fxe6 {[%emt 0:00:20]} 38. Rxe6 {[%emt 0:00:30]} Qxh4 {[%emt 0:00:36]} 39. Qf5 {[%emt 0:02:30]} g5 {[%emt 0:10:33]} 40. Qe5+ {[%emt 0:00:30]} Rdc7 {[%emt 0:00:07]} 41. Qxd5 {[%emt 0:01:30]} g4 {[%emt 0:02:46]} 42. Qd6 {[%emt 0:04:30]} Qg5+ {[%emt 0:05:13]} 43. Kb1 {[%emt 0:00:00]} Qf5+ {[%emt 0:00:47]} 44. Ka1 {[%emt 0:01:00]} b6 {[%emt 0:00:17]} 45. R2e5 {[%emt 0:02:30]} Qf3 {[%emt 0:00:43]} 46. Rxh6 {[%emt 0:01:30]} g3 {[%emt 0:00:19]} 47. Rhe6 {[%emt 0:00:30]} g2 {[%emt 0:00:41]} 48. Re1 {[%emt 0:00:30]} Qf2 {[%emt 0:00:23]} 49. Qh2 {[%emt 0:00:30]} Rg8 {[%emt 0:01:04]} 0-1

[Event "Turkish Cup 2022"]
[Site "Sakarya"]
[Date "2022.03.30"]
[Round "8.24"]
[White "Bacak, Muhammed Kaan"]
[Black "Ercan, Mehmet Fahri"]
[Result "1-0"]
[ECO "A14"]
[WhiteElo "2155"]
[BlackElo "1775"]
[Annotator "ChessBase"]
[PlyCount "147"]
[EventDate "2022.03.25"]
[EventType "swiss"]
[EventCountry "TUR"]
[SourceTitle "playchess.com"]
[Source "ChessBase"]
[SourceQuality "1"]
[TimeControl "5400+30"]

1. Nf3 {[%emt 0:01:00]} Nf6 {[%emt 0:10:00]} 2. g3 {[%emt 0:00:00]} d5 {[%emt 0:01:30]} 3. Bg2 {[%emt 0:00:00]} e6 {[%emt 0:00:00]} 4. c4 {[%emt 0:00:30]} c6 {[%emt 0:01:00]} 5. b3 {[%emt 0:00:30]} Be7 {[%emt 0:00:30]} 6. Bb2 {[%emt 0:00:30]} O-O {[%emt 0:00:30]} 7. O-O {[%emt 0:00:30]} Nbd7 {[%emt 0:00:00]} 8. d3 {[%emt 0:00:00]} Re8 {[%emt 0:01:00]} 9. Nbd2 {[%emt 0:00:00]} b6 {[%emt 0:01:30]} 10. Qc2 {[%emt 0:00:30]} Bb7 {[%emt 0:00:30]} 11. e4 {[%emt 0:02:30]} h6 {[%emt 0:05:30]} 12. Rad1 {[%emt 0:03:30]} Rc8 {[%emt 0:09:30]} 13. e5 {[%emt 0:03:30]} Nh7 {[%emt 0:00:00]} 14. Ne1 {[%emt 0:01:30]} Qc7 {[%emt 0:04:00]} 15. f4 {[%emt 0:00:30]} f5 {[%emt 0:01:30]} 16. exf6 {[%emt 0:04:30]} Bxf6 {[%emt 0:00:30]} 17. Nef3 {[%emt 0:04:30]} e5 {[%emt 0:01:30]} 18. fxe5 {[%emt 0:00:30]} Nxe5 {[%emt 0:00:30]} 19. Nxe5 {[%emt 0:01:30]} Bxe5 {[%emt 0:00:00]} 20. d4 {[%emt 0:00:30]} Bf6 {[%emt 0:01:00]} 21. Qf5 {[%emt 0:06:30]} Rcd8 {[%emt 0:01:30]} 22. cxd5 {[%emt 0:00:30]} cxd5 {[%emt 0:00:30]} 23. Rfe1 {[%emt 0:09:30]} Qd6 {[%emt 0:05:30]} 24. Nf3 {[%emt 0:05:30]} Ng5 {[%emt 0:04:30]} 25. Nxg5 {[%emt 0:00:30]} Bxg5 {[%emt 0:00:30]} 26. Bc1 {[%emt 0:02:30]} Bf6 {[%emt 0:04:30]} 27. Rxe8+ {[%emt 0:03:30]} Rxe8 {[%emt 0:00:00]} 28. Bf4 {[%emt 0:00:30]} Qe6 {[%emt 0:06:00]} 29. Qxe6+ {[%emt 0:03:30]} Rxe6 {[%emt 0:00:30]} 30. Kf2 {[%emt 0:00:00]} Kf7 {[%emt 0:01:30]} 31. h4 {[%emt 0:01:00]} g5 {[%emt 0:00:30]} 32. hxg5 {[%emt 0:00:30]} hxg5 {[%emt 0:00:30]} 33. Be3 {[%emt 0:00:30]} Kg6 {[%emt 0:04:30]} 34. Rc1 {[%emt 0:01:30]} Re7 {[%emt 0:00:30]} 35. b4 {[%emt 0:02:30]} g4 {[%emt 0:00:30]} 36. Rc2 {[%emt 0:00:30]} Bg5 {[%emt 0:01:30]} 37. Bxg5 {[%emt 0:00:30]} Kxg5 {[%emt 0:00:30]} 38. b5 {[%emt 0:04:30]} Rf7+ {[%emt 0:01:30]} 39. Ke3 {[%emt 0:00:30]} Re7+ {[%emt 0:00:30]} 40. Kd3 {[%emt 0:00:00]} a6 {[%emt 0:01:30]} 41. a4 {[%emt 0:00:00]} a5 {[%emt 0:00:00]} 42. Rc1 {[%emt 0:15:30]} Kg6 {[%emt 0:06:00]} 43. Bf1 {[%emt 0:03:30]} Rh7 {[%emt 0:09:28]} 44. Ke3 {[%emt 0:02:30]} Kg5 {[%emt 0:00:44]} 45. Bd3 {[%emt 0:01:33]} Rf7 {[%emt 0:01:44]} 46. Be2 {[%emt 0:00:43]} Rh7 {[%emt 0:00:22]} 47. Kd2 {[%emt 0:01:09]} Re7 {[%emt 0:00:57]} 48. Rc3 {[%emt 0:00:33]} Kf5 {[%emt 0:00:50]} 49. Bd3+ {[%emt 0:01:01]} Kg5 {[%emt 0:00:03]} 50. Rc1 {[%emt 0:00:00]} Rf7 {[%emt 0:05:21]} 51. Be2 {[%emt 0:02:10]} Re7 {[%emt 0:00:52]} 52. Rc3 {[%emt 0:00:30]} Kf5 {[%emt 0:00:00]} 53. Bd1 {[%emt 0:00:00]} Kg5 {[%emt 0:01:02]} 54. Bc2 {[%emt 0:00:35]} Rf7 {[%emt 0:00:33]} 55. Bd1 {[%emt 0:03:16]} Re7 {[%emt 0:00:20]} 56. Be2 {[%emt 0:03:04]} Kf5 {[%emt 0:00:21]} 57. Kd3 {[%emt 0:00:28]} Kg5 {[%emt 0:00:13]} 58. Rc1 {[%emt 0:01:06]} Rh7 {[%emt 0:01:13]} 59. Kd2 {[%emt 0:00:19]} Re7 {[%emt 0:00:00]} 60. Bd3 {[%emt 0:03:38]} Rf7 {[%emt 0:00:38]} 61. Re1 {[%emt 0:03:25]} Rf2+ {[%emt 0:00:38]} 62. Kc3 {[%emt 0:00:24]} Kf6 {[%emt 0:02:14]} 63. Re8 {[%emt 0:00:32]} Kg7 {[%emt 0:01:10]} 64. Re7+ {[%emt 0:00:35]} Rf7 {[%emt 0:00:04]} 65. Rxf7+ {[%emt 0:00:30]} Kxf7 {[%emt 0:00:30]} 66. Bf5 {[%emt 0:00:00]} Kf6 {[%emt 0:00:43]} 67. Bxg4 {[%emt 0:00:00]} Kg5 {[%emt 0:00:40]} 68. Bd7 {[%emt 0:00:23]} Kh5 {[%emt 0:00:30]} 69. Kd2 {[%emt 0:00:30]} Kg5 {[%emt 0:00:30]} 70. Ke3 {[%emt 0:00:00]} Kf6 {[%emt 0:01:42]} 71. Kf4 {[%emt 0:00:35]} Ke7 {[%emt 0:00:14]} 72. Bf5 {[%emt 0:00:00]} Kf6 {[%emt 0:05:56]} 73. g4 {[%emt 0:00:00]} Ke7 {[%emt 0:00:35]} 74. Ke5 {[%emt 0:00:02]} 1-0

[Event "Turkish Cup 2022"]
[Site "Sakarya"]
[Date "2022.03.30"]
[Round "8.25"]
[White "Lale, Omer Faruk"]
[Black "Kul, Ozdemir Efe"]
[Result "1/2-1/2"]
[ECO "B06"]
[WhiteElo "1771"]
[BlackElo "2042"]
[Annotator "ChessBase"]
[PlyCount "127"]
[EventDate "2022.03.25"]
[EventType "swiss"]
[EventCountry "TUR"]
[SourceTitle "playchess.com"]
[Source "ChessBase"]
[SourceQuality "1"]
[TimeControl "5400+30"]

1. e4 {[%emt 0:01:00]} g6 {[%emt 0:03:00]} 2. d4 {[%emt 0:00:30]} Bg7 {[%emt 0:00:00]} 3. Bc4 {[%emt 0:00:30]} d6 {[%emt 0:02:00]} 4. Be3 {[%emt 0:02:30]} a6 {[%emt 0:01:30]} 5. f4 {[%emt 0:13:30]} Nf6 {[%emt 0:02:30]} 6. Qf3 {[%emt 0:14:30]} Bg4 {[%emt 0:18:30]} 7. Qg3 {[%emt 0:01:30]} h5 {[%emt 0:03:30]} 8. Nc3 {[%emt 0:04:30]} h4 {[%emt 0:06:30]} 9. Qf2 {[%emt 0:00:30]} h3 {[%emt 0:03:30]} 10. e5 {[%emt 0:02:30]} Ng8 {[%emt 0:03:30]} 11. Nf3 {[%emt 0:01:30]} hxg2 {[%emt 0:04:30]} 12. Qxg2 {[%emt 0:00:30]} Nh6 {[%emt 0:08:30]} 13. O-O-O {[%emt 0:13:30]} c6 {[%emt 0:04:30]} 14. d5 {[%emt 0:05:30]} b5 {[%emt 0:05:30]} 15. Be2 {[%emt 0:01:30]} b4 {[%emt 0:04:30]} 16. Ne4 {[%emt 0:03:30]} cxd5 {[%emt 0:01:30]} 17. Rxd5 {[%emt 0:01:30]} Be6 {[%emt 0:00:00]} 18. Rdd1 {[%emt 0:06:30]} Qa5 {[%emt 0:00:00]} 19. Nfg5 {[%emt 0:01:30]} Bxa2 {[%emt 0:03:30]} 20. Nxd6+ {[%emt 0:04:48]} exd6 {[%emt 0:00:30]} 21. Qxa8 {[%emt 0:00:30]} O-O {[%emt 0:00:30]} 22. Rxd6 {[%emt 0:10:03]} Nf5 {[%emt 0:00:30]} 23. Bb6 {[%emt 0:00:30]} Qa4 {[%emt 0:00:30]} 24. Rd8 {[%emt 0:01:47]} Nd7 {[%emt 0:11:20]} 25. Rxf8+ {[%emt 0:01:15]} Bxf8 {[%emt 0:00:48]} 26. Qxa6 {[%emt 0:02:07]} Qxa6 {[%emt 0:03:31]} 27. Bxa6 {[%emt 0:00:06]} Bd5 {[%emt 0:00:00]} 28. Rd1 {[%emt 0:03:22]} Nxb6 {[%emt 0:00:00]} 29. c4 {[%emt 0:02:02]} Bxc4 {[%emt 0:03:14]} 30. Bxc4 {[%emt 0:00:40]} Nxc4 {[%emt 0:00:30]} 31. Rd7 {[%emt 0:00:00]} Be7 {[%emt 0:00:39]} 32. h4 {[%emt 0:00:16]} Nb6 {[%emt 0:00:49]} 33. Rb7 {[%emt 0:00:41]} Nd5 {[%emt 0:00:09]} 34. e6 {[%emt 0:00:22]} f6 {[%emt 0:02:51]} 35. Ne4 {[%emt 0:00:08]} Nxf4 {[%emt 0:00:25]} 36. Ng3 {[%emt 0:00:40]} Nxg3 {[%emt 0:03:45]} 37. Rxe7 {[%emt 0:00:10]} Nf5 {[%emt 0:00:19]} 38. Rb7 {[%emt 0:00:17]} Nd5 {[%emt 0:00:00]} 39. Kd2 {[%emt 0:01:26]} Nfe7 {[%emt 0:00:55]} 40. Kd3 {[%emt 0:00:19]} f5 {[%emt 0:00:24]} 41. Kd4 {[%emt 0:00:21]} f4 {[%emt 0:00:20]} 42. b3 {[%emt 0:02:13]} Kg7 {[%emt 0:00:06]} 43. Ke5 {[%emt 0:00:02]} Kh6 {[%emt 0:00:35]} 44. Ra7 {[%emt 0:00:35]} Kh5 {[%emt 0:00:32]} 45. Ra1 {[%emt 0:00:36]} Kxh4 {[%emt 0:00:12]} 46. Rh1+ {[%emt 0:00:17]} Kg3 {[%emt 0:01:28]} 47. Rg1+ {[%emt 0:00:56]} Kf2 {[%emt 0:00:09]} 48. Rd1 {[%emt 0:00:01]} Ne3 {[%emt 0:02:21]} 49. Rd7 {[%emt 0:00:27]} N3f5 {[%emt 0:00:00]} 50. Kxf4 {[%emt 0:00:32]} Ke2 {[%emt 0:00:05]} 51. Kg5 {[%emt 0:00:16]} Ke3 {[%emt 0:00:38]} 52. Kf6 {[%emt 0:00:17]} Nc6 {[%emt 0:00:25]} 53. Kxg6 {[%emt 0:00:45]} Ke4 {[%emt 0:00:11]} 54. Rc7 {[%emt 0:01:07]} Ke5 {[%emt 0:00:30]} 55. Kf7 {[%emt 0:00:30]} Nd8+ {[%emt 0:00:30]} 56. Ke8 {[%emt 0:00:30]} Nxe6 {[%emt 0:00:30]} 57. Ra7 {[%emt 0:00:30]} Nd6+ {[%emt 0:00:30]} 58. Kd7 {[%emt 0:00:12]} Kd5 {[%emt 0:00:00]} 59. Ra5+ {[%emt 0:01:03]} Nc5+ {[%emt 0:00:08]} 60. Kc7 {[%emt 0:00:02]} Kd4 {[%emt 0:01:55]} 61. Kc6 {[%emt 0:00:34]} Nde4 {[%emt 0:00:45]} 62. Rb5 {[%emt 0:00:29]} Kc3 {[%emt 0:00:55]} 63. Rxb4 {[%emt 0:00:07]} Kxb4 {[%emt 0:00:00]} 64. Kd5 {[%emt 0:00:08]} 1/2-1/2

[Event "Turkish Cup 2022"]
[Site "Sakarya"]
[Date "2022.03.30"]
[Round "8.32"]
[White "Colak, Tugay"]
[Black "Kilic, Cihan"]
[Result "1/2-1/2"]
[ECO "D00"]
[WhiteElo "1701"]
[BlackElo "1874"]
[Annotator "NA"]
[PlyCount "139"]
[EventDate "2022.03.25"]
[EventType "swiss"]
[EventCountry "TUR"]
[SourceTitle "playchess.com"]
[Source "ChessBase"]
[SourceQuality "1"]
[TimeControl "5400+30"]

1. d4 {[%emt 0:01:00]} Nf6 {[%emt 0:07:00]} 2. Bg5 {[%emt 0:00:30]} d5 {[%emt 0:00:00]} 3. Bxf6 {[%emt 0:00:30]} gxf6 {[%emt 0:00:00]} 4. e3 {[%emt 0:00:30]} c5 {[%emt 0:05:30]} 5. Nf3 {[%emt 0:12:30]} Nc6 {[%emt 0:01:30]} 6. c4 {[%emt 0:05:30]} dxc4 {[%emt 0:04:30]} 7. Bxc4 {[%emt 0:02:30]} Bg7 {[%emt 0:04:30]} 8. Nc3 {[%emt 0:09:30]} O-O {[%emt 0:10:30]} 9. d5 {[%emt 0:14:30]} Ne5 {[%emt 0:03:30]} 10. Nxe5 {[%emt 0:00:30]} fxe5 {[%emt 0:00:00]} 11. Qh5 {[%emt 0:00:30]} a6 {[%emt 0:03:00]} 12. a4 {[%emt 0:09:30]} Qb6 {[%emt 0:02:30]} 13. Rb1 {[%emt 0:09:30]} Qb4 {[%emt 0:01:30]} 14. Qe2 {[%emt 0:02:30]} Bd7 {[%emt 0:02:30]} 15. O-O {[%emt 0:00:30]} Bxa4 {[%emt 0:01:30]} 16. Nxa4 {[%emt 0:09:36]} Qxa4 {[%emt 0:00:30]} 17. b3 {[%emt 0:00:00]} Qd7 {[%emt 0:01:30]} 18. e4 {[%emt 0:04:11]} b5 {[%emt 0:03:30]} 19. Bd3 {[%emt 0:00:03]} e6 {[%emt 0:01:30]} 20. dxe6 {[%emt 0:04:21]} Qxe6 {[%emt 0:00:30]} 21. f4 {[%emt 0:04:10]} Rad8 {[%emt 0:05:30]} 22. f5 {[%emt 0:01:01]} Qf6 {[%emt 0:01:30]} 23. Rbc1 {[%emt 0:01:03]} Rd4 {[%emt 0:03:30]} 24. Rxc5 {[%emt 0:03:45]} Rfd8 {[%emt 0:01:30]} 25. Rd5 {[%emt 0:00:35]} R8xd5 {[%emt 0:02:30]} 26. exd5 {[%emt 0:00:30]} Rxd5 {[%emt 0:00:00]} 27. Rc1 {[%emt 0:02:21]} Qh4 {[%emt 0:05:00]} 28. Rc8+ {[%emt 0:00:18]} Bf8 {[%emt 0:00:30]} 29. g3 {[%emt 0:01:20]} Qd4+ {[%emt 0:08:30]} 30. Kg2 {[%emt 0:00:05]} Rd8 {[%emt 0:00:30]} 31. Rxd8 {[%emt 0:01:58]} Qxd8 {[%emt 0:00:30]} 32. Qg4+ {[%emt 0:00:30]} Kh8 {[%emt 0:00:30]} 33. f6 {[%emt 0:00:30]} Qxf6 {[%emt 0:00:30]} 34. Qe4 {[%emt 0:00:30]} Qg7 {[%emt 0:00:30]} 35. Qb7 {[%emt 0:00:00]} Qf6 {[%emt 0:07:29]} 36. Qe4 {[%emt 0:00:00]} Qg7 {[%emt 0:00:25]} 37. Qb7 {[%emt 0:00:00]} f5 {[%emt 0:01:35]} 38. Qxa6 {[%emt 0:00:10]} e4 {[%emt 0:00:38]} 39. Bxb5 {[%emt 0:01:09]} f4 {[%emt 0:00:40]} 40. Be2 {[%emt 0:01:04]} f3+ {[%emt 0:03:36]} 41. Bxf3 {[%emt 0:00:04]} exf3+ {[%emt 0:00:29]} 42. Kxf3 {[%emt 0:00:02]} Qf7+ {[%emt 0:00:23]} 43. Kg2 {[%emt 0:00:18]} Qxb3 {[%emt 0:01:40]} 44. Qf6+ {[%emt 0:00:30]} Bg7 {[%emt 0:00:00]} 45. Qd8+ {[%emt 0:00:18]} Qg8 {[%emt 0:00:10]} 46. Qxg8+ {[%emt 0:00:00]} Kxg8 {[%emt 0:00:00]} 47. Kf3 {[%emt 0:00:29]} Kf7 {[%emt 0:00:04]} 48. Kf4 {[%emt 0:01:15]} Kg6 {[%emt 0:01:04]} 49. h4 {[%emt 0:00:11]} Kh5 {[%emt 0:01:43]} 50. Kf3 {[%emt 0:00:33]} Bh6 {[%emt 0:01:13]} 51. Kf2 {[%emt 0:02:35]} Kg4 {[%emt 0:00:30]} 52. Kg2 {[%emt 0:00:30]} Bg7 {[%emt 0:00:30]} 53. Kh2 {[%emt 0:00:30]} h5 {[%emt 0:00:30]} 54. Kg2 {[%emt 0:00:00]} Bd4 {[%emt 0:01:51]} 55. Kh2 {[%emt 0:00:08]} Kf3 {[%emt 0:00:00]} 56. Kh1 {[%emt 0:00:07]} Bc3 {[%emt 0:00:33]} 57. Kh2 {[%emt 0:00:37]} Bd4 {[%emt 0:00:40]} 58. Kh1 {[%emt 0:00:30]} Be3 {[%emt 0:00:30]} 59. Kh2 {[%emt 0:00:00]} Bf2 {[%emt 0:00:41]} 60. Kh1 {[%emt 0:00:43]} Bc5 {[%emt 0:00:30]} 61. Kh2 {[%emt 0:00:00]} Kg4 {[%emt 0:00:39]} 62. Kg2 {[%emt 0:00:11]} Bd6 {[%emt 0:00:30]} 63. Kh2 {[%emt 0:00:30]} Kf3 {[%emt 0:00:30]} 64. Kg1 {[%emt 0:00:30]} Bc5+ {[%emt 0:00:00]} 65. Kh2 {[%emt 0:01:38]} Kf2 {[%emt 0:00:00]} 66. Kh3 {[%emt 0:00:43]} Kf3 {[%emt 0:00:23]} 67. Kh2 {[%emt 0:00:30]} Bd4 {[%emt 0:00:00]} 68. Kh1 {[%emt 0:00:00]} Kf2 {[%emt 0:00:57]} 69. Kh2 {[%emt 0:00:00]} Kf1 {[%emt 0:00:00]} 70. Kh3 {[%emt 0:00:00]} 1/2-1/2